Workbook

Sheet ORÇAMENTO
A1: <---- NUMERAR SERVIÇOS PARA CPU | C1: Ministério do Desenvolvimento Regional
C2: Companhia de Desenvolvimento dos Vales do São Francisco e do Parnaíba
C3: 1ª Superintendência Regional
B5: OBRA: | C5: RECAPEAMENTO DE VIAS URBANAS - BAIRRO GERALDO XAVIER E RESIDENCIAL ZÉ DO NATO (SÃO JOSÉ DA VARGINHA / MG) - ITEM 3
B6: DATA: | C6: SETEMBRO / 2023 | G6: BDI Serviços: | I6: ='BDI SERV'!D31/100 -> 0.2201
B7: PRAZO DE EXECUÇÃO: 120 DIAS | G7: BDI Serviços: | I7: ='BDI FORN'!D31/100 -> 0.15
B8: ITEM | C8: DISCRIMINAÇÃO | D8: REFER. | E8: UNID. | F8: QUANT. | G8: P. UNITÁRIO | H8: P.UNIT.C/ BDI | I8: P. TOTAL
A9: A | B9: 1 | C9: SERVIÇOS PRELIMINARES | I9: =SUM(I10:I13) -> 139908.1
A10: 1 | B10: 1.1 | C10: MOBILIZAÇÃO E DESMOBILIZAÇÃO | D10: CPU.1 | E10: GL | F10: 1 | G10: =VLOOKUP(A10,CPU!$A$1:$N$4577,9) -> 8742.38 | H10: =VLOOKUP(A10,CPU!$A$1:$N$4577,10) -> 10666.58 | I10: =ROUND(F10*H10,2) -> 10666.58
A11: 2 | B11: 1.2 | C11: ADMINISTRAÇÃO LOCAL | D11: CPU.2 | E11: GL | F11: 1 | G11: =VLOOKUP(A11,CPU!$A$1:$N$4577,9) -> 94324.68 | H11: =VLOOKUP(A11,CPU!$A$1:$N$4577,10) -> 115085.54 | I11: =ROUND(F11*H11,2) -> 115085.54
A12: 3 | B12: 1.3 | C12: CANTEIRO DE OBRAS | D12: CPU.3 | E12: GL | F12: 1 | G12: =VLOOKUP(A12,CPU!$A$1:$N$4577,9) -> 9564 | H12: =VLOOKUP(A12,CPU!$A$1:$N$4577,10) -> 11669.04 | I12: =ROUND(F12*H12,2) -> 11669.04
A13: 4 | B13: 1.4 | C13: PLACA DE OBRA EM CHAPA DE AÇO GALVANIZADO | D13: 103689 | E13: M2 | F13: 6 | G13: =VLOOKUP(A13,CPU!$A$1:$N$4577,9) -> 339.72 | H13: =VLOOKUP(A13,CPU!$A$1:$N$4577,10) -> 414.49 | I13: =ROUND(F13*H13,2) -> 2486.94
A14: B | B14: 2 | C14: PAVIMENTAÇÃO | I14: =SUM(I15:I17) -> 261660.76
A15: 10 | B15: 2.1 | C15: RECOMPOSIÇÃO DE BASE E OU SUB-BASE PARA REMENDO PROFUNDO DE BICA CORRIDA - INCLUSO RETIRADA E COLOCAÇÃO DO MATERIAL | D15: 101835a | E15: M3 | F15: 39.98 | G15: =VLOOKUP(A15,CPU!$A$1:$N$4577,9) -> 214.74 | H15: =VLOOKUP(A15,CPU!$A$1:$N$4577,10) -> 262 | I15: =ROUND(F15*H15,2) -> 10474.76
A16: 11 | B16: 2.6 | C16: PINTURA DE LIGAÇÃO COM EMULSÃO ASFÁLTICA RR-1C | D16: 96402 | E16: M2 | F16: 52000 | G16: =VLOOKUP(A16,CPU!$A$1:$N$4577,9) -> 0.93 | H16: =VLOOKUP(A16,CPU!$A$1:$N$4577,10) -> 1.13 | I16: 58760
A17: 12 | B17: 2.7 | C17: EXECUÇÃO DE PAVIMENTO COM APLICAÇÃO DE CONCRETO ASFÁLTICO USINADO A QUENTE (CBUQ), CAMADA DE ROLAMENTO - EXCLUSIVE TRANSPORTE | D17: 95995 | E17: M3 | F17: 1300 | G17: =VLOOKUP(A17,CPU!$A$1:$N$4577,9) -> 121.32 | H17: =VLOOKUP(A17,CPU!$A$1:$N$4577,10) -> 148.02 | I17: 192426
A18: C | B18: 3 | C18: TRANSPORTE DE MATERIAIS | I18: =SUM(I19:I20) -> 2596
A19: 13 | B19: 3.1 | C19: TRANSPORTE COM CAMINHÃO BASCULANTE, EM VIA URBANA PAVIMENTADA | D19: 95427 | E19: M3XKM | F19: 3000 | G19: =VLOOKUP(A19,CPU!$A$1:$N$4577,9) -> 0.65 | H19: =VLOOKUP(A19,CPU!$A$1:$N$4577,10) -> 0.79 | I19: =ROUND(F19*H19,2) -> 2370
A20: 14 | B20: 3.2 | C20: TRANSPORTE COM CAMINHÃO CARROCERIA 9T, EM VIA URBANA PAVIMENTADA | D20: 100947 | E20: TXKM | F20: 200 | G20: =VLOOKUP(A20,CPU!$A$1:$N$4577,9) -> 0.93 | H20: =VLOOKUP(A20,CPU!$A$1:$N$4577,10) -> 1.13 | I20: =ROUND(F20*H20,2) -> 226
A21: D | B21: 4 | C21: TRANSPORTE DE MATERIAL ASFÁLTICO (BDI DIFERENCIADO) | I21: =SUM(I22:I23) -> 48296
A22: 15 | B22: 4.1 | C22: TRANSPORTE DE MASSA ASFÁLTICA COM CAMINHÃO BASCULANTE, EM VIA URBANA PAVIMENTADA (BDI DIFERENCIADO) | D22: 95430 | E22: TXKM | F22: 100000 | G22: =VLOOKUP(A22,CPU!$A$1:$N$4577,9) -> 0.41 | H22: =VLOOKUP(A22,CPU!$A$1:$N$4577,10) -> 0.47 | I22: =ROUND(F22*H22,2) -> 47000
A23: 16 | B23: 4.2 | C23: TRANSPORTE COM CAMINHÃO TANQUE DE TRANSPORTE DE MATERIAL ASFÁLTICO DE 30000 L, EM VIA URBANA PAVIMENTADA (BDI DIFERENCIADO) | D23: 102331 | E23: TXKM | F23: 2400 | G23: =VLOOKUP(A23,CPU!$A$1:$N$4577,9) -> 0.47 | H23: =VLOOKUP(A23,CPU!$A$1:$N$4577,10) -> 0.54 | I23: =ROUND(F23*H23,2) -> 1296
A24: E | B24: 5 | C24: DRENAGEM E OBRAS COMPLEMENTARES | I24: =SUM(I25:I29) -> 142413.4
A25: 17 | B25: 5.1 | C25: ALTEAMENTO DE TAMPAO DE PV EM ATE 20 CM | D25: 19.22.04 | E25: UN. | F25: 34 | G25: =VLOOKUP(A25,CPU!$A$1:$N$4577,9) -> 136 | H25: =VLOOKUP(A25,CPU!$A$1:$N$4577,10) -> 165.93 | I25: =ROUND(F25*H25,2) -> 5641.62
A26: 18 | B26: 5.2 | C26: FORNECIMENTO E INSTALAÇÃO DE PLACA DE SINALIZAÇÃO VIÁRIA - REGULAMENTAÇÃO | D26: CPU.4 | E26: UN. | F26: 22 | G26: =VLOOKUP(A26,CPU!$A$1:$N$4577,9) -> 384.67 | H26: =VLOOKUP(A26,CPU!$A$1:$N$4577,10) -> 469.34 | I26: 10325.48
A27: 19 | B27: 5.3 | C27: PINTURA DE SÍMBOLOS E TEXTOS COM TINTA ACRÍLICA, DEMARCAÇÃO COM FITA ADESIVA E APLICAÇÃO COM ROLO (PARE, ETC.) | D27: 102513 | E27: UN. | F27: 33 | G27: =VLOOKUP(A27,CPU!$A$1:$N$4577,9) -> 44.83 | H27: =VLOOKUP(A27,CPU!$A$1:$N$4577,10) -> 54.7 | I27: 1805.1
A28: 20 | B28: 5.4 | C28: FORNECIMENTO E INSTALAÇÃO DE PLACA DE AÇO PARA IDENTIFICACAO DE RUA, *45 CM X 20* CM, INCLUSIVE SUPORTE EM TUBO DE AÇO GALVANIZADO (02 PLACAS POR SUPORTE) | D28: CPU.5 | E28: UN. | F28: 80 | G28: =VLOOKUP(A28,CPU!$A$1:$N$4577,9) -> 375.29 | H28: =VLOOKUP(A28,CPU!$A$1:$N$4577,10) -> 457.89 | I28: 36631.2
A29: 21 | B29: 5.5 | C29: PINTURA DE EIXO VIÁRIO SOBRE ASFALTO COM TINTA RETRORREFLETIVA A BASE DE RESINA ACRÍLICA COM MICROESFERAS DE VIDRO, APLICAÇÃO MECÂNICA COM DEMARCADORA AUTOPROPELIDA | D29: 102512 | E29: M | F29: 13000 | G29: =VLOOKUP(A29,CPU!$A$1:$N$4577,9) -> 5.55 | H29: =VLOOKUP(A29,CPU!$A$1:$N$4577,10) -> 6.77 | I29: 88010
A30: F | B30: 6 | C30: FORNECIMENTOS - MATERIAL ASFÁLTICO (BDI DIFERENCIADO) | I30: =SUM(I31:I32) -> 2121230.65
A31: 26 | B31: 6.1 | C31: AQUISIÇÃO DE EMULSAO ASFALTICA CATIONICA RR-1C - EXCLUSIVE TRANSPORTE | D31: CPU.6 | E31: T | F31: 24 | G31: =VLOOKUP(A31,CPU!$A$1:$N$4577,9) -> 2736.39 | H31: =VLOOKUP(A31,CPU!$A$1:$N$4577,10) -> 3146.85 | I31: =ROUND(F31*H31,2) -> 75524.4
A32: 27 | B32: 6.2 | C32: AQUISIÇÃO DE CONCRETO BETUMINOSO USINADO A QUENTE (CBUQ) PARA PAVIMENTACAO ASFALTICA, PADRAO DNIT, FAIXA C, COM CAP 50/70 - EXCLUSIVE TRANSPORTE | D32: CPU.7 | E32: T | F32: 3325 | G32: =VLOOKUP(A32,CPU!$A$1:$N$4577,9) -> 535 | H32: =VLOOKUP(A32,CPU!$A$1:$N$4577,10) -> 615.25 | I32: =ROUND(F32*H32,2) -> 2045706.25
B33: TOTAL GERAL DA OBRA COM BDI | I33: =SUM(I9,I14,I18,I24,I30,I21) -> 2716104.91

Sheet CPU
A1: 1 | B1: CODEVASF | E1: COMPOSIÇÃO DE PREÇO UNITÁRIO | I1: =H11 -> 8742.38 | J1: =H13 -> 10666.58 | K1: BDI CALCULADO: | M1: =ORÇAMENTO!I6 -> 0.2201
B2: OBRA: | C2: =ORÇAMENTO!C5 -> RECAPEAMENTO DE VIAS URBANAS - BAIRRO GERALDO XAVIER E RESIDENCIAL ZÉ DO NATO (SÃO JOSÉ DA VARGINHA / MG) - ITEM 3 | G2: DATA: | H2: =ORÇAMENTO!C6 -> SETEMBRO / 2023 | K2: BDI DIFERENCIADO: | M2: ='BDI FORN'!D31/100 -> 0.15
B3: SERVIÇO: | C3: =VLOOKUP(A1,ORÇAMENTO!A10:I25,3) -> MOBILIZAÇÃO E DESMOBILIZAÇÃO | E3: Referência: | F3: =VLOOKUP(A1,ORÇAMENTO!$A$10:$I$25,4) -> CPU.1 | G3: UNIDADE: | H3: =VLOOKUP(A1,ORÇAMENTO!A10:I25,5) -> GL
B5: TIPO ITEM | C5: CODIGO ITEM | D5: DESCRIÇÃO ITEM | E5: UNIDADE ITEM | F5: COEFICIENTE | G5: PRECO UNITARIO | H5: CUSTO TOTAL
B6: COMPOSICAO | C6: 89876 | D6: CAMINHÃO BASCULANTE 14 M3, COM CAVALO MECÂNICO DE CAPACIDADE MÁXIMA DE TRAÇÃO COMBINADO DE 36000 KG, POTÊNCIA 286 CV, INCLUSIVE SEMIREBOQUE COM CAÇAMBA METÁLICA | E6: CHP DIURNO. | F6: 8 | G6: 286.2 | H6: =ROUNDDOWN(F6*G6,2) -> 2289.6
B7: COMPOSICAO | C7: 89877 | D7: CAMINHÃO BASCULANTE 14 M3, COM CAVALO MECÂNICO DE CAPACIDADE MÁXIMA DE TRAÇÃO COMBINADO DE 36000 KG, POTÊNCIA 286 CV, INCLUSIVE SEMIREBOQUE COM CAÇAMBA METÁLICA | E7: CHI DIURNO. | F7: 8 | G7: 82.81 | H7: =ROUNDDOWN(F7*G7,2) -> 662.48
B8: COMPOSICAO | C8: 5914640 | D8: TRANSPORTE COM CAVALO MECÂNICO COM SEMIRREBOQUE COM CAPACIDADE DE 30 T - RODOVIA PAVIMENTADA | E8: T.KM | F8: 1935 | G8: 0.57 | H8: =ROUNDDOWN(F8*G8,2) -> 1102.95
B9: COMPOSIÇÃO | C9: 88316 | D9: SERVENTE COM ENCARGOS COMPLEMENTARES | E9: H | F9: 16 | G9: 19.76 | H9: =ROUNDDOWN(F9*G9,2) -> 316.16
B10: PRODUÇÃO DA EQUIPE | E10: 0.5 | F10: CUSTO | H10: =SUM(H6:H9) -> 4371.19
B11: TOTAL | H11: =H10/E10 -> 8742.38 | I11: OK
B12: BDI % | H12: =1+$M$1 -> 1.2201
B13: TOTAL DO SERVIÇO - R$ | H13: =ROUND(H11*H12,2) -> 10666.58
A15: =A1+1 -> 2 | B15: CODEVASF | E15: COMPOSIÇÃO DE PREÇO UNITÁRIO | I15: =H29 -> 94324.68 | J15: =H31 -> 115085.54
B16: OBRA: | C16: =$C$2 -> RECAPEAMENTO DE VIAS URBANAS - BAIRRO GERALDO XAVIER E RESIDENCIAL ZÉ DO NATO (SÃO JOSÉ DA VARGINHA / MG) - ITEM 3 | G16: DATA: | H16: =$H$2 -> SETEMBRO / 2023
B17: SERVIÇO: | C17: =VLOOKUP(A15,ORÇAMENTO!$A$10:$I$25,3) -> ADMINISTRAÇÃO LOCAL | E17: SINAPI | F17: =VLOOKUP(A15,ORÇAMENTO!$A$10:$I$25,4) -> CPU.2 | G17: UNIDADE: | H17: =VLOOKUP(A15,ORÇAMENTO!$A$10:$I$25,5) -> GL
B19: TIPO ITEM | C19: CODIGO ITEM | D19: DESCRIÇÃO ITEM | E19: UNIDADE ITEM | F19: COEFICIENTE | G19: PRECO UNITARIO | H19: CUSTO TOTAL
B20: INSUMO | C20: 14250 | D20: ENERGIA ELÉTRICA | E20: kwh | F20: 60 | G20: 0.95 | H20: =ROUNDDOWN(F20*G20,2) -> 57
B21: INSUMO | C21: 44480 | D21: TARIFA "A" - ÁGUA/ESGOTO | E21: m³ | F21: 6 | G21: 17.97 | H21: 107.82
B22: COTAÇÃO | C22: MERC. | D22: TELEFONE (PLANO CONTROLE) | E22: UNID | F22: 2 | G22: 59.9 | H22: 119.8
B23: INSUMO | C23: ED-50155 SEINFRA | D23: BANHEIRO QUÍMICO 110 X 120 X 230 CM COM MANUTENÇÃO (CONSIDERANDO OBRAS SIMULTÂNEAS) | E23: MÊS | F23: 1 | G23: 515 | H23: 515
B24: COMPOSICAO | C24: 90777 | D24: Engenheiro Civil Júnior com encargos complementares | E24: H | F24: 55 | G24: 114.12 | H24: 6276.6
B25: COMPOSICAO | C25: 90776 | D25: Encarregado Geral com encargos complementares | E25: H | F25: 220 | G25: 57.73 | H25: 12700.6
B26: COMPOSICAO | C26: 88321 | D26: Tecnico de Laboratório com encargos complementares | E26: H | F26: 55 | G26: 45.45 | H26: 2499.75
B27: COMPOSICAO | C27: 90772 | D27: Auxiliar de escritório com encargos complementares | E27: H | F27: 55 | G27: 23.72 | H27: 1304.6
B28: PRODUÇÃO DA EQUIPE | E28: 0.25 | F28: CUSTO | H28: =SUM(H20:H27) -> 23581.17
B29: TOTAL | H29: =ROUND(H28/E28,2) -> 94324.68 | I29: OK
B30: BDI % | H30: =1+$M$1 -> 1.2201
B31: TOTAL DO SERVIÇO - R$ | H31: =ROUND(H29*H30,2) -> 115085.54
A33: =A15+1 -> 3 | B33: CODEVASF | E33: COMPOSIÇÃO DE PREÇO UNITÁRIO | I33: =H43 -> 9564 | J33: =H45 -> 11669.04
B34: OBRA: | C34: =$C$2 -> RECAPEAMENTO DE VIAS URBANAS - BAIRRO GERALDO XAVIER E RESIDENCIAL ZÉ DO NATO (SÃO JOSÉ DA VARGINHA / MG) - ITEM 3 | G34: DATA: | H34: =$H$2 -> SETEMBRO / 2023
B35: SERVIÇO: | C35: =VLOOKUP(A33,ORÇAMENTO!$A$10:$I$25,3) -> CANTEIRO DE OBRAS | E35: SINAPI | F35: =VLOOKUP(A33,ORÇAMENTO!$A$10:$I$25,4) -> CPU.3 | G35: UNIDADE: | H35: =VLOOKUP(A33,ORÇAMENTO!$A$10:$I$25,5) -> GL
B37: TIPO ITEM | C37: CODIGO ITEM | D37: DESCRIÇÃO ITEM | E37: UNIDADE ITEM | F37: COEFICIENTE | G37: PRECO UNITARIO | H37: CUSTO TOTAL
B38: INSUMO | C38: 10775 | D38: LOCACAO DE CONTAINER 2,30 X 6,00 M, ALT. 2,50 M, COM 1 SANITARIO, PARA ESCRITORIO, COMPLETO, SEM DIVISORIAS INTERNAS | E38: MÊS | F38: 4 | G38: 995 | H38: =ROUNDDOWN(F38*G38,2) -> 3980
B39: INSUMO | C39: 10779 | D39: LOCACAO DE CONTAINER 2,30 X 4,30 M, ALT. 2,50 M, P/ SANITARIO, C/ 5 BACIAS, 1 LAVATORIO E 4 MICTORIOS | E39: MÊS | F39: 4 | G39: 1243.75 | H39: =ROUNDDOWN(F39*G39,2) -> 4975
B40: INSUMO | C40: 37525 | D40: TELA PLASTICA TECIDA LISTRADA BRANCA E LARANJA, TIPO GUARDA CORPO, EM POLIETILENO MONOFILADO, ROLO 1,20 X 50 M (L X C) | E40: M | F40: 100 | G40: 3.69 | H40: =ROUNDDOWN(F40*G40,2) -> 369
B41: COMPOSICAO | C41: - | D41: PLACA DE SINALIZAÇÃO - "PERIGO - OBRAS A FRENTE" - FORNECIMENTO E MOVIMENTAÇÃO | E41: UNID. | F41: 12 | G41: 20 | H41: =ROUNDDOWN(F41*G41,2) -> 240
B42: PRODUÇÃO DA EQUIPE | E42: 1 | F42: CUSTO | H42: =SUM(H38:H41) -> 9564
B43: TOTAL | H43: =H42/E42 -> 9564 | I43: OK
B44: BDI % | H44: =1+$M$1 -> 1.2201
B45: TOTAL DO SERVIÇO - R$ | H45: =ROUND(H43*H44,2) -> 11669.04
A47: =A33+1 -> 4 | B47: CODEVASF | E47: COMPOSIÇÃO DE PREÇO UNITÁRIO | I47: =H61 -> 339.72 | J47: =H63 -> 414.49
B48: OBRA: | C48: =$C$2 -> RECAPEAMENTO DE VIAS URBANAS - BAIRRO GERALDO XAVIER E RESIDENCIAL ZÉ DO NATO (SÃO JOSÉ DA VARGINHA / MG) - ITEM 3 | G48: DATA: | H48: =$H$2 -> SETEMBRO / 2023
B49: SERVIÇO: | C49: =VLOOKUP(A47,ORÇAMENTO!$A$10:$I$25,3) -> PLACA DE OBRA EM CHAPA DE AÇO GALVANIZADO | E49: SINAPI | F49: =VLOOKUP(A47,ORÇAMENTO!$A$10:$I$25,4) -> 103689 | G49: UNIDADE: | H49: =VLOOKUP(A47,ORÇAMENTO!$A$10:$I$25,5) -> M2
B51: TIPO ITEM | C51: CODIGO ITEM | D51: DESCRIÇÃO ITEM | E51: UNIDADE ITEM | F51: COEFICIENTE | G51: PRECO UNITARIO | H51: CUSTO TOTAL
B52: INSUMO | C52: 4509 | D52: SARRAFO *2,5 X 10* CM EM PINUS, MISTA OU EQUIVALENTE DA REGIAO - BRUTA | E52: M | F52: 3,2083000 | G52: 4,41 | H52: =ROUNDDOWN(F52*G52,2) -> 14.14
B53: INSUMO | C53: 4813 | D53: PLACA DE OBRA (PARA CONSTRUCAO CIVIL) EM CHAPA GALVANIZADA *N. 22*, ADESIVADA, DE *2,4 X 1,2* M (SEM POSTES PARA FIXACAO) | E53: M2 | F53: 1,0000000 | G53: 250,00 | H53: 250
B54: INSUMO | C54: 5065 | D54: PREGO DE ACO POLIDO COM CABECA 10 X 10 (7/8 X 17) | E54: KG | F54: 0,0113000 | G54: 36,57 | H54: 0.41
B55: INSUMO | C55: 5069 | D55: PREGO DE ACO POLIDO COM CABECA 17 X 27 (2 1/2 X 11) | E55: KG | F55: 0,0132000 | G55: 19,59 | H55: 0.25
B56: COMPOSICAO | C56: 88262 | D56: CARPINTEIRO DE FORMAS COM ENCARGOS COMPLEMENTARES | E56: H | F56: 0,3729000 | G56: 27,05 | H56: 10.08
B57: COMPOSICAO | C57: 88316 | D57: SERVENTE COM ENCARGOS COMPLEMENTARES | E57: H | F57: 1,1186000 | G57: 19,76 | H57: 22.1
B58: INSUMO | C58: 4115 | D58: MADEIRA ROLICA TRATADA, D = 12 A 15 CM, H = 3,00 M, EM EUCALIPTO OU EQUIVALENTE | E58: M | F58: 2 | G58: 21.37 | H58: 42.74
H59: 0
B60: PRODUÇÃO DA EQUIPE | E60: 1 | F60: CUSTO | H60: =SUM(H52:H59) -> 339.72
B61: TOTAL | H61: =H60/E60 -> 339.72 | I61: OK
B62: BDI % | H62: =1+$M$1 -> 1.2201
B63: TOTAL DO SERVIÇO - R$ | H63: =ROUND(H61*H62,2) -> 414.49
A65: 10 | B65: CODEVASF | E65: COMPOSIÇÃO DE PREÇO UNITÁRIO | I65: =H77 -> 214.74 | J65: =H79 -> 262
B66: OBRA: | C66: =$C$2 -> RECAPEAMENTO DE VIAS URBANAS - BAIRRO GERALDO XAVIER E RESIDENCIAL ZÉ DO NATO (SÃO JOSÉ DA VARGINHA / MG) - ITEM 3 | G66: DATA: | H66: =$H$2 -> SETEMBRO / 2023
B67: SERVIÇO: | C67: =VLOOKUP(A65,ORÇAMENTO!$A$10:$I$25,3) -> RECOMPOSIÇÃO DE BASE E OU SUB-BASE PARA REMENDO PROFUNDO DE BICA CORRIDA - INCLUSO RETIRADA E COLOCAÇÃO DO MATERIAL | E67: SINAPI | F67: =VLOOKUP(A65,ORÇAMENTO!$A$10:$I$25,4) -> 101835a | G67: UNIDADE: | H67: =VLOOKUP(A65,ORÇAMENTO!$A$10:$I$25,5) -> M3
B69: TIPO ITEM | C69: CODIGO ITEM | D69: DESCRIÇÃO ITEM | E69: UNIDADE ITEM | F69: COEFICIENTE | G69: PRECO UNITARIO | H69: CUSTO TOTAL
B70: COMPOSICAO | C70: 88316 | D70: SERVENTE COM ENCARGOS COMPLEMENTARES | E70: H | F70: 4,2001000 | G70: 19,76 | H70: =ROUNDDOWN(F70*G70,2) -> 82.99
B71: COMPOSICAO | C71: 91533 | D71: COMPACTADOR DE SOLOS DE PERCUSSÃO (SOQUETE) COM MOTOR A GASOLINA 4 TEMPOS, POTÊNCIA 4 CV | E71: CHP | F71: 0,2050000 | G71: 40,60 | H71: 8.32
B72: COMPOSICAO | C72: 91534 | D72: COMPACTADOR DE SOLOS DE PERCUSSÃO (SOQUETE) COM MOTOR A GASOLINA 4 TEMPOS, POTÊNCIA 4 CV | E72: CHI | F72: 0,8450000 | G72: 34,40 | H72: 29.06
B73: COMPOSICAO | C73: 4748 | D73: PEDRA BRITADA OU BICA CORRIDA, NAO CLASSIFICADA (POSTO PEDREIRA/FORNECEDOR, SEM FRETE) | E73: M3 | F73: 1,0000000 | G73: 70 | H73: 70
B74: INSUMO | C74: ANP | D74: EMULSÃO ASFÁLTICA PARA IMPRIMAÇÃO (EAI) | E74: T | F74: =1.3/0.15/1000 -> 0.008666666667 | G74: =2.30638*1.2195122*1000 -> 2812.658548 | H74: 24.37
H75: 0
B76: PRODUÇÃO DA EQUIPE | E76: 1 | F76: CUSTO | H76: =SUM(H70:H75) -> 214.74
B77: TOTAL | H77: =H76/E76 -> 214.74 | I77: OK
B78: BDI % | H78: =1+$M$1 -> 1.2201
B79: TOTAL DO SERVIÇO - R$ | H79: =ROUND(H77*H78,2) -> 262
A81: 11 | B81: CODEVASF | E81: COMPOSIÇÃO DE PREÇO UNITÁRIO | I81: =H96 -> 0.93 | J81: =H98 -> 1.13
B82: OBRA: | C82: =$C$2 -> RECAPEAMENTO DE VIAS URBANAS - BAIRRO GERALDO XAVIER E RESIDENCIAL ZÉ DO NATO (SÃO JOSÉ DA VARGINHA / MG) - ITEM 3 | G82: DATA: | H82: =$H$2 -> SETEMBRO / 2023
B83: SERVIÇO: | C83: =VLOOKUP(A81,ORÇAMENTO!$A$10:$I$25,3) -> PINTURA DE LIGAÇÃO COM EMULSÃO ASFÁLTICA RR-1C | E83: SINAPI | F83: =VLOOKUP(A81,ORÇAMENTO!$A$10:$I$25,4) -> 96402 | G83: UNIDADE: | H83: M2
B85: TIPO ITEM | C85: CODIGO ITEM | D85: DESCRIÇÃO ITEM | E85: UNIDADE ITEM | F85: COEFICIENTE | G85: PRECO UNITARIO | H85: CUSTO TOTAL
B86: COMPOSICAO | C86: 5839 | D86: VASSOURA MECÂNICA REBOCÁVEL COM ESCOVA CILÍNDRICA, LARGURA ÚTIL DE VARRIMENTO DE 2,44 M | E86: CHP | F86: 0,0020000 | G86: 9.77 | H86: =ROUNDDOWN(F86*G86,2) -> 0.01
B87: COMPOSICAO | C87: 5841 | D87: VASSOURA MECÂNICA REBOCÁVEL COM ESCOVA CILÍNDRICA, LARGURA ÚTIL DE VARRIMENTO DE 2,44 M | E87: CHI | F87: 0,0040000 | G87: 4.65 | H87: 0.01
B88: INSUMO | C88: 41903 | D88: EMULSAO ASFALTICA CATIONICA RR-2C PARA USO EM PAVIMENTACAO ASFALTICA (FORNECIMENTO COM BDI DIFERENCIADO) | E88: KG | F88: 0,4500000 | H88: 0
B89: COMPOSICAO | C89: 83362 | D89: ESPARGIDOR DE ASFALTO PRESSURIZADO, TANQUE 6 M3 COM ISOLAÇÃO TÉRMICA, AQUECIDO COM 2 MAÇARICOS, COM BARRA ESPARGIDORA 3,60 M, MONTADO SOBRE CAMINHÃO TOCO, PBT 14.300 KG, POTÊNCIA 185 CV | E89: CHP | F89: 0,0004000 | G89: 232.92 | H89: 0.09
B90: COMPOSICAO | C90: 88316 | D90: SERVENTE COM ENCARGOS COMPLEMENTARES | E90: H | F90: 0,0055000 | G90: 19.76 | H90: 0.1
B91: COMPOSICAO | C91: 89035 | D91: TRATOR DE PNEUS, POTÊNCIA 85 CV, TRAÇÃO 4X4, PESO COM LASTRO DE 4.675 KG | E91: CHP | F91: 0,0017000 | G91: 119.96 | H91: 0.2
B92: COMPOSICAO | C92: 89036 | D92: TRATOR DE PNEUS, POTÊNCIA 85 CV, TRAÇÃO 4X4, PESO COM LASTRO DE 4.675 KG | E92: CHI | F92: 0,0038000 | G92: 52.19 | H92: 0.19
B93: COMPOSICAO | C93: 91486 | D93: ESPARGIDOR DE ASFALTO PRESSURIZADO, TANQUE 6 M3 COM ISOLAÇÃO TÉRMICA, AQUECIDO COM 2 MAÇARICOS, COM BARRA ESPARGIDORA 3,60 M, MONTADO SOBRE CAMINHÃO TOCO, PBT 14.300 KG, POTÊNCIA 185 CV | E93: CHI | F93: 0,0051000 | G93: 66.18 | H93: 0.33
H94: 0
B95: PRODUÇÃO DA EQUIPE | E95: 1 | F95: CUSTO | H95: =SUM(H86:H94) -> 0.93
B96: TOTAL | H96: =H95/E95 -> 0.93 | I96: OK
B97: BDI % | H97: =1+$M$1 -> 1.2201
B98: TOTAL DO SERVIÇO - R$ | H98: =ROUND(H96*H97,2) -> 1.13
A100: 12 | B100: CODEVASF | E100: COMPOSIÇÃO DE PREÇO UNITÁRIO | I100: =H118 -> 121.32 | J100: =H120 -> 148.02
B101: OBRA: | C101: =$C$2 -> RECAPEAMENTO DE VIAS URBANAS - BAIRRO GERALDO XAVIER E RESIDENCIAL ZÉ DO NATO (SÃO JOSÉ DA VARGINHA / MG) - ITEM 3 | G101: DATA: | H101: =$H$2 -> SETEMBRO / 2023
B102: SERVIÇO: | C102: =VLOOKUP(A100,ORÇAMENTO!$A$10:$I$25,3) -> EXECUÇÃO DE PAVIMENTO COM APLICAÇÃO DE CONCRETO ASFÁLTICO USINADO A QUENTE (CBUQ), CAMADA DE ROLAMENTO - EXCLUSIVE TRANSPORTE | E102: SINAPI | F102: =VLOOKUP(A100,ORÇAMENTO!$A$10:$I$25,4) -> 95995 | G102: UNIDADE: | H102: =VLOOKUP(A100,ORÇAMENTO!$A$10:$I$25,5) -> M3
B104: TIPO ITEM | C104: CODIGO ITEM | D104: DESCRIÇÃO ITEM | E104: UNIDADE ITEM | F104: COEFICIENTE | G104: PRECO UNITARIO | H104: CUSTO TOTAL
B105: INSUMO | C105: 1518 | D105: CONCRETO BETUMINOSO USINADO A QUENTE (CBUQ) PARA PAVIMENTACAO ASFALTICA, PADRAO DNIT, FAIXA C, COM CAP 50/70 - AQUISICAO POSTO USINA (FORNECIMENTO COM BDI DIFERENCIADO) | E105: T | F105: 2,5548000 | H105: =ROUNDDOWN(F105*G105,2) -> 0
B106: COMPOSICAO | C106: 5835 | D106: VIBROACABADORA DE ASFALTO SOBRE ESTEIRAS, LARGURA DE PAVIMENTAÇÃO 1,90 M A 5,30 M, POTÊNCIA 105 HP CAPACIDADE 450 T/H | E106: CHP | F106: 0,0464000 | G106: 366,49 | H106: 17
B107: COMPOSICAO | C107: 5837 | D107: VIBROACABADORA DE ASFALTO SOBRE ESTEIRAS, LARGURA DE PAVIMENTAÇÃO 1,90 M A 5,30 M, POTÊNCIA 105 HP CAPACIDADE 450 T/H | E107: CHI | F107: 0,0949000 | G107: 147,82 | H107: 14.02
B108: COMPOSICAO | C108: 88314 | D108: RASTELEIRO COM ENCARGOS COMPLEMENTARES | E108: H | F108: 1,1301000 | G108: 26,52 | H108: 29.97
B109: COMPOSICAO | C109: 91386 | D109: CAMINHÃO BASCULANTE 10 M3, TRUCADO CABINE SIMPLES, PESO BRUTO TOTAL 23.000 KG, CARGA ÚTIL MÁXIMA 15.935 KG, DISTÂNCIA ENTRE EIXOS 4,80 M, POTÊNCIA 230 CV INCLUSIVE CAÇAMBA METÁLICA | E109: CHP | F109: 0,0464000 | G109: 228,50 | H109: 10.6
B110: COMPOSICAO | C110: 95631 | D110: ROLO COMPACTADOR VIBRATORIO TANDEM, ACO LISO, POTENCIA 125 HP, PESO SEM/COM LASTRO 10,20/11,65 T, LARGURA DE TRABALHO 1,73 M | E110: CHP | F110: 0,0805000 | G110: 210,29 | H110: 16.92
B111: COMPOSICAO | C111: 95632 | D111: ROLO COMPACTADOR VIBRATORIO TANDEM, ACO LISO, POTENCIA 125 HP, PESO SEM/COM LASTRO 10,20/11,65 T, LARGURA DE TRABALHO 1,73 M | E111: CHI | F111: 0,0607000 | G111: 83,23 | H111: 5.05
B112: COMPOSICAO | C112: 96155 | D112: TRATOR DE PNEUS COM POTÊNCIA DE 85 CV, TRAÇÃO 4X4, COM VASSOURA MECÂNICA ACOPLADA | E112: CHI | F112: 0,1071000 | G112: 56,63 | H112: 6.06
B113: COMPOSICAO | C113: 96157 | D113: TRATOR DE PNEUS COM POTÊNCIA DE 85 CV, TRAÇÃO 4X4, COM VASSOURA MECÂNICA ACOPLADA | E113: CHP | F113: 0,0341000 | G113: 128,67 | H113: 4.38
B114: COMPOSICAO | C114: 96463 | D114: ROLO COMPACTADOR DE PNEUS, ESTATICO, PRESSAO VARIAVEL, POTENCIA 110 HP, PESO SEM/COM LASTRO 10,8/27 T, LARGURA DE ROLAGEM 2,30 M | E114: CHP | F114: 0,0419000 | G114: 203,13 | H114: 8.51
B115: COMPOSICAO | C115: 96464 | D115: ROLO COMPACTADOR DE PNEUS, ESTATICO, PRESSAO VARIAVEL, POTENCIA 110 HP, PESO SEM/COM LASTRO 10,8/27 T, LARGURA DE ROLAGEM 2,30 M | E115: CHI | F115: 0,0990000 | G115: 89,07 | H115: 8.81
H116: 0
B117: PRODUÇÃO DA EQUIPE | E117: 1 | F117: CUSTO | H117: =SUM(H105:H116) -> 121.32
B118: TOTAL | H118: =H117/E117 -> 121.32 | I118: OK
B119: BDI % | H119: =1+$M$1 -> 1.2201
B120: TOTAL DO SERVIÇO - R$ | H120: =ROUND(H118*H119,2) -> 148.02
A122: 13 | B122: CODEVASF | E122: COMPOSIÇÃO DE PREÇO UNITÁRIO | I122: =H131 -> 0.65 | J122: =H133 -> 0.79
B123: OBRA: | C123: =$C$2 -> RECAPEAMENTO DE VIAS URBANAS - BAIRRO GERALDO XAVIER E RESIDENCIAL ZÉ DO NATO (SÃO JOSÉ DA VARGINHA / MG) - ITEM 3 | G123: DATA: | H123: =$H$2 -> SETEMBRO / 2023
B124: SERVIÇO: | C124: =VLOOKUP(A122,ORÇAMENTO!$A$10:$I$25,3) -> TRANSPORTE COM CAMINHÃO BASCULANTE, EM VIA URBANA PAVIMENTADA | E124: SINAPI | F124: =VLOOKUP(A122,ORÇAMENTO!$A$10:$I$25,4) -> 95427 | G124: UNIDADE: | H124: =VLOOKUP(A122,ORÇAMENTO!$A$10:$I$25,5) -> M3XKM
B126: TIPO ITEM | C126: CODIGO ITEM | D126: DESCRIÇÃO ITEM | E126: UNIDADE ITEM | F126: COEFICIENTE | G126: PRECO UNITARIO | H126: CUSTO TOTAL
B127: COMPOSICAO | C127: 89883 | D127: CAMINHÃO BASCULANTE 18 M3, COM CAVALO MECÂNICO DE CAPACIDADE MÁXIMA DE TRAÇÃO COMBINADO DE 45000 KG, POTÊNCIA 330 CV, INCLUSIVE SEMIREBOQUE COM CAÇAMBA METÁLICA | E127: CHP | F127: 0,0019000 | G127: 314,64 | H127: =ROUNDDOWN(F127*G127,2) -> 0.59
B128: COMPOSICAO | C128: 89884 | D128: CAMINHÃO BASCULANTE 18 M3, COM CAVALO MECÂNICO DE CAPACIDADE MÁXIMA DE TRAÇÃO COMBINADO DE 45000 KG, POTÊNCIA 330 CV, INCLUSIVE SEMIREBOQUE COM CAÇAMBA METÁLICA | E128: CHI | F128: 0,0008000 | G128: 86,36 | H128: =ROUNDDOWN(F128*G128,2) -> 0.06
H129: =ROUNDDOWN(F129*G129,2) -> 0
B130: PRODUÇÃO DA EQUIPE | E130: 1 | F130: CUSTO | H130: =SUM(H127:H129) -> 0.65
B131: TOTAL | H131: =H130/E130 -> 0.65 | I131: OK
B132: BDI % | H132: =1+$M$1 -> 1.2201
B133: TOTAL DO SERVIÇO - R$ | H133: =ROUND(H131*H132,2) -> 0.79
A135: 14 | B135: CODEVASF | E135: COMPOSIÇÃO DE PREÇO UNITÁRIO | I135: =H144 -> 0.93 | J135: =H146 -> 1.13
B136: OBRA: | C136: =$C$2 -> RECAPEAMENTO DE VIAS URBANAS - BAIRRO GERALDO XAVIER E RESIDENCIAL ZÉ DO NATO (SÃO JOSÉ DA VARGINHA / MG) - ITEM 3 | G136: DATA: | H136: =$H$2 -> SETEMBRO / 2023
B137: SERVIÇO: | C137: =VLOOKUP(A135,ORÇAMENTO!$A$10:$I$25,3) -> TRANSPORTE COM CAMINHÃO CARROCERIA 9T, EM VIA URBANA PAVIMENTADA | E137: SINAPI | F137: =VLOOKUP(A135,ORÇAMENTO!$A$10:$I$25,4) -> 100947 | G137: UNIDADE: | H137: =VLOOKUP(A135,ORÇAMENTO!$A$10:$I$25,5) -> TXKM
B139: TIPO ITEM | C139: CODIGO ITEM | D139: DESCRIÇÃO ITEM | E139: UNIDADE ITEM | F139: COEFICIENTE | G139: PRECO UNITARIO | H139: CUSTO TOTAL
B140: COMPOSICAO | C140: 5824 | D140: CAMINHÃO TOCO, PBT 16.000 KG, CARGA ÚTIL MÁX. 10.685 KG, DIST. ENTRE EIXOS 4,8 M, POTÊNCIA 189 CV, INCLUSIVE CARROCERIA FIXA ABERTA DE MADEIRA P/ TRANSPORTE GERAL DE CARGA SECA | E140: CHP | F140: 0.0039 | G140: 183,71 | H140: =ROUNDDOWN(F140*G140,2) -> 0.71
B141: COMPOSICAO | C141: 5826 | D141: CAMINHÃO TOCO, PBT 16.000 KG, CARGA ÚTIL MÁX. 10.685 KG, DIST. ENTRE EIXOS 4,8 M, POTÊNCIA 189 CV, INCLUSIVE CARROCERIA FIXA ABERTA DE MADEIRA P/ TRANSPORTE GERAL DE CARGA SECA | E141: CHI | F141: 0,0040000 | G141: 57,00 | H141: =ROUNDDOWN(F141*G141,2) -> 0.22
H142: =ROUNDDOWN(F142*G142,2) -> 0
B143: PRODUÇÃO DA EQUIPE | E143: 1 | F143: CUSTO | H143: =SUM(H140:H142) -> 0.93
B144: TOTAL | H144: =H143/E143 -> 0.93 | I144: OK
B145: BDI % | H145: =1+$M$1 -> 1.2201
B146: TOTAL DO SERVIÇO - R$ | H146: =ROUND(H144*H145,2) -> 1.13
A148: 15 | B148: CODEVASF | E148: COMPOSIÇÃO DE PREÇO UNITÁRIO | I148: =H157 -> 0.41 | J148: =H159 -> 0.47
B149: OBRA: | C149: =$C$2 -> RECAPEAMENTO DE VIAS URBANAS - BAIRRO GERALDO XAVIER E RESIDENCIAL ZÉ DO NATO (SÃO JOSÉ DA VARGINHA / MG) - ITEM 3 | G149: DATA: | H149: =$H$2 -> SETEMBRO / 2023
B150: SERVIÇO: | C150: =VLOOKUP(A148,ORÇAMENTO!$A$10:$I$25,3) -> TRANSPORTE DE MASSA ASFÁLTICA COM CAMINHÃO BASCULANTE, EM VIA URBANA PAVIMENTADA (BDI DIFERENCIADO) | E150: SINAPI | F150: =VLOOKUP(A148,ORÇAMENTO!$A$10:$I$25,4) -> 95430 | G150: UNIDADE: | H150: =VLOOKUP(A148,ORÇAMENTO!$A$10:$I$25,5) -> TXKM
B152: TIPO ITEM | C152: CODIGO ITEM | D152: DESCRIÇÃO ITEM | E152: UNIDADE ITEM | F152: COEFICIENTE | G152: PRECO UNITARIO | H152: CUSTO TOTAL
B153: COMPOSICAO | C153: 89883 | D153: CAMINHÃO BASCULANTE 18 M3, COM CAVALO MECÂNICO DE CAPACIDADE MÁXIMA DE TRAÇÃO COMBINADO DE 45000 KG, POTÊNCIA 330 CV, INCLUSIVE SEMIREBOQUE COM CAÇAMBA METÁLICA | E153: CHP | F153: 0,0012000 | G153: 314,64 | H153: =ROUNDDOWN(F153*G153,2) -> 0.37
B154: COMPOSICAO | C154: 89884 | D154: CAMINHÃO BASCULANTE 18 M3, COM CAVALO MECÂNICO DE CAPACIDADE MÁXIMA DE TRAÇÃO COMBINADO DE 45000 KG, POTÊNCIA 330 CV, INCLUSIVE SEMIREBOQUE COM CAÇAMBA METÁLICA | E154: CHI | F154: 0,0005000 | G154: 86,36 | H154: =ROUNDDOWN(F154*G154,2) -> 0.04
H155: =ROUNDDOWN(F155*G155,2) -> 0
B156: PRODUÇÃO DA EQUIPE | E156: 1 | F156: CUSTO | H156: =SUM(H153:H155) -> 0.41
B157: TOTAL | H157: =H156/E156 -> 0.41 | I157: OK
B158: BDI % | H158: =1+$M$2 -> 1.15
B159: TOTAL DO SERVIÇO - R$ | H159: =ROUND(H157*H158,2) -> 0.47
A161: 16 | B161: CODEVASF | E161: COMPOSIÇÃO DE PREÇO UNITÁRIO | I161: =H169 -> 0.47 | J161: =H171 -> 0.54
B162: OBRA: | C162: =$C$2 -> RECAPEAMENTO DE VIAS URBANAS - BAIRRO GERALDO XAVIER E RESIDENCIAL ZÉ DO NATO (SÃO JOSÉ DA VARGINHA / MG) - ITEM 3 | G162: DATA: | H162: =$H$2 -> SETEMBRO / 2023
B163: SERVIÇO: | C163: =VLOOKUP(A161,ORÇAMENTO!$A$10:$I$25,3) -> TRANSPORTE COM CAMINHÃO TANQUE DE TRANSPORTE DE MATERIAL ASFÁLTICO DE 30000 L, EM VIA URBANA PAVIMENTADA (BDI DIFERENCIADO) | E163: SINAPI | F163: =VLOOKUP(A161,ORÇAMENTO!$A$10:$I$25,4) -> 102331 | G163: UNIDADE: | H163: =VLOOKUP(A161,ORÇAMENTO!$A$10:$I$25,5) -> TXKM
B165: TIPO ITEM | C165: CODIGO ITEM | D165: DESCRIÇÃO ITEM | E165: UNIDADE ITEM | F165: COEFICIENTE | G165: PRECO UNITARIO | H165: CUSTO TOTAL
B166: COMPOSICAO | C166: 91645 | D166: CAMINHÃO DE TRANSPORTE DE MATERIAL ASFÁLTICO 30.000 L, COM CAVALO MECÂNICO DE CAPACIDADE MÁXIMA DE TRAÇÃO COMBINADO DE 66.000 KG, POTÊNCIA 360 CV, INCLUSIVE TANQUE DE ASFALTO COM SERPENTINA | E166: CHP | F166: 0,0011000 | G166: 394,83 | H166: =ROUNDDOWN(F166*G166,2) -> 0.43
B167: COMPOSICAO | C167: 91646 | D167: CAMINHÃO DE TRANSPORTE DE MATERIAL ASFÁLTICO 30.000 L, COM CAVALO MECÂNICO DE CAPACIDADE MÁXIMA DE TRAÇÃO COMBINADO DE 66.000 KG, POTÊNCIA 360 CV, INCLUSIVE TANQUE DE ASFALTO COM SERPENTINA | E167: CHI | F167: 0,0005000 | G167: 90,79 | H167: =ROUNDDOWN(F167*G167,2) -> 0.04
B168: PRODUÇÃO DA EQUIPE | E168: 1 | F168: CUSTO | H168: =SUM(H166:H167) -> 0.47
B169: TOTAL | H169: =H168/E168 -> 0.47 | I169: OK
B170: BDI % | H170: =1+$M$2 -> 1.15
B171: TOTAL DO SERVIÇO - R$ | H171: =ROUND(H169*H170,2) -> 0.54
A173: 17 | B173: CODEVASF | E173: COMPOSIÇÃO DE PREÇO UNITÁRIO | I173: =H183 -> 136 | J173: =H185 -> 165.93
B174: OBRA: | C174: =$C$2 -> RECAPEAMENTO DE VIAS URBANAS - BAIRRO GERALDO XAVIER E RESIDENCIAL ZÉ DO NATO (SÃO JOSÉ DA VARGINHA / MG) - ITEM 3 | G174: DATA: | H174: =$H$2 -> SETEMBRO / 2023
B175: SERVIÇO: | C175: =VLOOKUP(A173,ORÇAMENTO!$A$10:$I$25,3) -> ALTEAMENTO DE TAMPAO DE PV EM ATE 20 CM | E175: SUDECAP | F175: =VLOOKUP(A173,ORÇAMENTO!$A$10:$I$25,4) -> 19.22.04 | G175: UNIDADE: | H175: =VLOOKUP(A173,ORÇAMENTO!$A$10:$I$25,5) -> UN.
B177: TIPO ITEM | C177: CODIGO ITEM | D177: DESCRIÇÃO ITEM | E177: UNIDADE ITEM | F177: COEFICIENTE | G177: PRECO UNITARIO | H177: CUSTO TOTAL
B178: COMPOSICAO | C178: 88628 | D178: ARGAMASSA TRAÇO 1:3 (EM VOLUME DE CIMENTO E AREIA MÉDIA ÚMIDA), PREPARO MECÂNICO COM BETONEIRA 400 L. AF_08/2019 | E178: M3 | F178: 0.01 | G178: 19,23 | H178: =ROUNDDOWN(F178*G178,2) -> 0.19
B179: COMPOSICAO | C179: 88309 | D179: PEDREIRO COM ENCARGOS COMPLEMENTARES | E179: H | F179: 2.6 | G179: 27,45 | H179: 71.37
B180: COMPOSICAO | C180: 88316 | D180: SERVENTE COM ENCARGOS COMPLEMENTARES | E180: H | F180: 2.6 | G180: 19,76 | H180: 51.37
B181: COMPOSICAO | C181: 94964 | D181: CONCRETO FCK = 20MPA, TRAÇO 1:2,7:3 (EM MASSA SECA DE CIMENTO/ AREIA MÉDIA/ BRITA 1) | E181: M3 | F181: 0.027 | G181: 484,42 | H181: 13.07
B182: PRODUÇÃO DA EQUIPE | E182: 1 | F182: CUSTO | H182: =SUM(H178:H181) -> 136
B183: TOTAL | H183: =H182/E182 -> 136 | I183: OK
B184: BDI % | H184: =1+$M$1 -> 1.2201
B185: TOTAL DO SERVIÇO - R$ | H185: =ROUND(H183*H184,2) -> 165.93
A187: 18 | B187: CODEVASF | E187: COMPOSIÇÃO DE PREÇO UNITÁRIO | I187: =H200 -> 384.67 | J187: =H202 -> 469.34
B188: OBRA: | C188: =$C$2 -> RECAPEAMENTO DE VIAS URBANAS - BAIRRO GERALDO XAVIER E RESIDENCIAL ZÉ DO NATO (SÃO JOSÉ DA VARGINHA / MG) - ITEM 3 | G188: DATA: | H188: =$H$2 -> SETEMBRO / 2023
B189: SERVIÇO: | C189: =VLOOKUP(A187,ORÇAMENTO!$A$10:$I$31,3) -> FORNECIMENTO E INSTALAÇÃO DE PLACA DE SINALIZAÇÃO VIÁRIA - REGULAMENTAÇÃO | E189: SINAPI | F189: =VLOOKUP(A187,ORÇAMENTO!$A$10:$I$35,4) -> CPU.4 | G189: UNIDADE: | H189: =VLOOKUP(A187,ORÇAMENTO!$A$10:$I$35,5) -> UN.
B191: TIPO ITEM | C191: CODIGO ITEM | D191: DESCRIÇÃO ITEM | E191: UNIDADE ITEM | F191: COEFICIENTE | G191: PRECO UNITARIO | H191: CUSTO TOTAL
B192: COMPOSICAO | C192: 94962 | D192: CONCRETO MAGRO PARA LASTRO, TRAÇO 1:4,5:4,5 (EM MASSA SECA DE CIMENTO/ AREIA / BRITA 1) | E192: M3 | F192: 0.024 | G192: 397.46 | H192: =ROUNDDOWN(F192*G192,2) -> 9.53
B193: COMPOSICAO | C193: 93358 | D193: ESCAVAÇÃO MANUAL DE VALA COM PROFUNDIDADE MENOR OU IGUAL A 1,30 M | E193: M3 | F193: 0.024 | G193: 78.17 | H193: 1.87
B194: COMPOSICAO | C194: 88309 | D194: PEDREIRO COM ENCARGOS COMPLEMENTARES | E194: H | F194: 0.2 | G194: 27.45 | H194: 5.49
B195: COMPOSICAO | C195: 88316 | D195: SERVENTE COM ENCARGOS COMPLEMENTARES | E195: H | F195: 1 | G195: 19.76 | H195: 19.76
B196: COMPOSICAO | C196: 103670 | D196: LANÇAMENTO COM USO DE BALDES, ADENSAMENTO E ACABAMENTO DE CONCRETO EM ESTRUTURAS | E196: M3 | F196: 0.024 | G196: 281.66 | H196: 6.75
B197: INSUMO | C197: 34723 | D197: PLACA DE SINALIZACAO EM CHAPA DE ACO NUM 16 COM PINTURA REFLETIVA (CIRCULAR - D=50CM) | E197: M2 | F197: =3.14*0.5*0.5/4 -> 0.19625 | G197: 577.5 | H197: 113.33
B198: INSUMO | C198: 21013 | D198: TUBO AÇO GALVANIZADO COM COSTURA, CLASSE LEVE, DN 50 MM ( 2")E = 3,00 MM, *4,40* KG/M | E198: M | F198: 3 | G198: 75.98 | H198: 227.94
B199: PRODUÇÃO DA EQUIPE | E199: 1 | F199: CUSTO | H199: =SUM(H192:H198) -> 384.67
B200: TOTAL | H200: =H199/E199 -> 384.67 | I200: OK
B201: BDI % | H201: =1+$M$1 -> 1.2201
B202: TOTAL DO SERVIÇO - R$ | H202: =ROUND(H200*H201,2) -> 469.34
A204: 19 | B204: CODEVASF | E204: COMPOSIÇÃO DE PREÇO UNITÁRIO | I204: =H215 -> 44.83 | J204: =H217 -> 54.7
B205: OBRA: | C205: =$C$2 -> RECAPEAMENTO DE VIAS URBANAS - BAIRRO GERALDO XAVIER E RESIDENCIAL ZÉ DO NATO (SÃO JOSÉ DA VARGINHA / MG) - ITEM 3 | G205: DATA: | H205: =$H$2 -> SETEMBRO / 2023
B206: SERVIÇO: | C206: =VLOOKUP(A204,ORÇAMENTO!$A$10:$I$31,3) -> PINTURA DE SÍMBOLOS E TEXTOS COM TINTA ACRÍLICA, DEMARCAÇÃO COM FITA ADESIVA E APLICAÇÃO COM ROLO (PARE, ETC.) | E206: SINAPI | F206: =VLOOKUP(A204,ORÇAMENTO!$A$10:$I$35,4) -> 102513 | G206: UNIDADE: | H206: UN.
B208: TIPO ITEM | C208: CODIGO ITEM | D208: DESCRIÇÃO ITEM | E208: UNIDADE ITEM | F208: COEFICIENTE | G208: PRECO UNITARIO | H208: CUSTO TOTAL
B209: INSUMO | C209: 7348 | D209: TINTA ACRILICA PREMIUM PARA PISO | E209: L | F209: 0,4270000 | G209: 17,07 | H209: =ROUNDDOWN(F209*G209,2) -> 7.28
B210: INSUMO | C210: 12815 | D210: FITA CREPE ROLO DE 25 MM X 50 M | E210: UN | F210: 0,2300000 | G210: 9,31 | H210: 2.14
B211: COMPOSICAO | C211: 88310 | D211: PINTOR COM ENCARGOS COMPLEMENTARES | E211: H | F211: 0,9600000 | G211: 28,66 | H211: 27.51
B212: COMPOSICAO | C212: 88316 | D212: SERVENTE COM ENCARGOS COMPLEMENTARES | E212: H | F212: 0,4000000 | G212: 19,76 | H212: 7.9
H213: 0
B214: PRODUÇÃO DA EQUIPE | E214: 1 | F214: CUSTO | H214: =SUM(H209:H213) -> 44.83
B215: TOTAL | H215: =H214/E214 -> 44.83 | I215: OK
B216: BDI % | H216: =1+$M$1 -> 1.2201
B217: TOTAL DO SERVIÇO - R$ | H217: =ROUND(H215*H216,2) -> 54.7
A219: 20 | B219: CODEVASF | E219: COMPOSIÇÃO DE PREÇO UNITÁRIO | I219: =H232 -> 375.29 | J219: =H234 -> 457.89
B220: OBRA: | C220: =$C$2 -> RECAPEAMENTO DE VIAS URBANAS - BAIRRO GERALDO XAVIER E RESIDENCIAL ZÉ DO NATO (SÃO JOSÉ DA VARGINHA / MG) - ITEM 3 | G220: DATA: | H220: =$H$2 -> SETEMBRO / 2023
B221: SERVIÇO: | C221: =VLOOKUP(A219,ORÇAMENTO!$A$10:$I$31,3) -> FORNECIMENTO E INSTALAÇÃO DE PLACA DE AÇO PARA IDENTIFICACAO DE RUA, *45 CM X 20* CM, INCLUSIVE SUPORTE EM TUBO DE AÇO GALVANIZADO (02 PLACAS POR SUPORTE) | E221: SINAPI | F221: =VLOOKUP(A219,ORÇAMENTO!$A$10:$I$35,4) -> CPU.5 | G221: UNIDADE: | H221: UN.
B223: TIPO ITEM | C223: CODIGO ITEM | D223: DESCRIÇÃO ITEM | E223: UNIDADE ITEM | F223: COEFICIENTE | G223: PRECO UNITARIO | H223: CUSTO TOTAL
B224: COMPOSICAO | C224: 94962 | D224: CONCRETO MAGRO PARA LASTRO, TRAÇO 1:4,5:4,5 (EM MASSA SECA DE CIMENTO/ AREIA/ BRITA 1) | E224: M3 | F224: 0.024 | G224: 397.46 | H224: =ROUNDDOWN(F224*G224,2) -> 9.53
B225: COMPOSICAO | C225: 93358 | D225: ESCAVAÇÃO MANUAL DE VALA COM PROFUNDIDADE MENOR OU IGUAL A 1,30 M | E225: M3 | F225: 0.024 | G225: 78.17 | H225: 1.87
B226: COMPOSICAO | C226: 88309 | D226: PEDREIRO COM ENCARGOS COMPLEMENTARES | E226: H | F226: 0.2 | G226: 27.45 | H226: 5.49
B227: COMPOSICAO | C227: 88316 | D227: SERVENTE COM ENCARGOS COMPLEMENTARES | E227: H | F227: 1 | G227: 19.76 | H227: 19.76
B228: COMPOSICAO | C228: 103670 | D228: LANÇAMENTO COM USO DE BALDES, ADENSAMENTO E ACABAMENTO DE CONCRETO EM ESTRUTURAS | E228: M3 | F228: 0.024 | G228: 281.66 | H228: 6.75
B229: INSUMO | C229: 34723 | D229: PLACA DE SINALIZACAO EM CHAPA DE ACO NUM 16 COM PINTURA REFLETIVA (CIRCULAR - D=50CM) | E229: M2 | F229: =0.45*0.2*2 -> 0.18 | G229: 577.5 | H229: 103.95
... 39 more rows

Sheet BDI SERV
B1: DETALHAMENTO DO BDI - SERVIÇOS
B4: Item | C4: Descrição dos Serviços | D4: % | E4: %
D5: PV | E5: CD
B7: 1 | C7: ADMINISTRAÇÃO CENTRAL | E7: 4.01
B8: 1.1 | C8: ESCRITÓRIO CENTRAL
B9: 1.2 | C9: VIAGENS
B10: 1.3 | C10: OUTROS
B12: 2 | C12: IMPOSTOS E TAXAS | D12: =SUM(D13:D16) -> 5.65 | E12: =SUM(E13:E16) -> 7.06
B13: 2.1 | C13: ISS (*) | D13: 2 | E13: =ROUND(D13*1.2515,2) -> 2.5
B14: 2.2 | C14: PIS | D14: 0.65 | E14: =ROUND(D14*1.2515,2) -> 0.81
B15: 2.3 | C15: Cofins | D15: 3 | E15: =ROUND(D15*1.2515,2) -> 3.75
B16: 2.4 | C16: CONTRIBUIÇÃO PREVIDENCIÁRIA SOBRE A RENDA BRUTA | D16: 0 | E16: =ROUND(D16*1.2515,2) -> 0
B18: 3 | C18: TAXA DE RISCO | E18: =SUM(E19:E22) -> 0.96
B19: 3.1 | C19: SEGURO | E19: 0.2
B20: 3.2 | C20: RISCO | E20: 0.56
B21: 3.3 | C21: GARANTIA | E21: 0.2
T22: =1/0.82 -> 1.219512195
B23: 4 | C23: DESPESAS FINANCEIRAS | E23: 1.54
B25: 5 | C25: LUCRO | E25: 8
C27: BDI - CALCULADO | E27: =ROUND((((1+(E7+E18)/100)*(1+E23/100)*(1+E25/100)/(1-D12/100)-1)*100),2) -> 22.01
A29: BDI = ((1+((AC+S+R+G)/100))x(1+DF/100)x(1+L/100)/(1-I/100)-1)*100
B31: BDI (CALCULADO): | D31: =ROUND((((1+((E7+E18)/100))*(1+E23/100)*(1+E25/100))/(1-D12/100)-1)*100,2) -> 22.01 | E31: %
A33: (*) ISS CONFORME LEI MUNICIPAL Nº 484 / 2009 - VIDE DECLARAÇÃO DA PREFEITURA
A37: BDI EM CONFORMIDADE COM OS ACÓRDÃOS Nº 2369/2011 e ACÓRDÃO Nº 2.622/2013 - TCU - PLENÁRIO

Sheet BDI FORN
B1: DETALHAMENTO DO BDI - FORNECIMENTO (MATERIAL ASFÁLTICO)
B4: Item | C4: Descrição dos Serviços | D4: % | E4: %
D5: PV | E5: CD
B7: 1 | C7: ADMINISTRAÇÃO CENTRAL | E7: 3.72
B8: 1.1 | C8: ESCRITÓRIO CENTRAL
B9: 1.2 | C9: VIAGENS
B10: 1.3 | C10: OUTROS
B12: 2 | C12: IMPOSTOS E TAXAS | D12: =SUM(D13:D16) -> 3.65 | E12: =SUM(E13:E16) -> 4.56
B13: 2.1 | C13: ISS (*) | E13: =ROUND(D13*1.2515,2) -> 0
B14: 2.2 | C14: PIS | D14: 0.65 | E14: =ROUND(D14*1.2515,2) -> 0.81
B15: 2.3 | C15: Cofins | D15: 3 | E15: =ROUND(D15*1.2515,2) -> 3.75
B16: 2.4 | C16: CONTRIBUIÇÃO PREVIDENCIÁRIA SOBRE A RENDA BRUTA | D16: 0 | E16: =ROUND(D16*1.2515,2) -> 0
B18: 3 | C18: TAXA DE RISCO | E18: =SUM(E19:E22) -> 0.82
B19: 3.1 | C19: SEGURO | E19: 0.16
B20: 3.2 | C20: RISCO | E20: 0.5
B21: 3.3 | C21: GARANTIA | E21: 0.16
B23: 4 | C23: DESPESAS FINANCEIRAS | E23: 0.94
B25: 5 | C25: LUCRO | E25: 5
C27: BDI - CALCULADO | E27: =ROUND((((1+(E7+E18)/100)*(1+E23/100)*(1+E25/100)/(1-D12/100)-1)*100),2) -> 15
A29: BDI = ((1+((AC+S+R+G)/100))x(1+DF/100)x(1+L/100)/(1-I/100)-1)*100
B31: BDI (CALCULADO): | D31: =ROUND((((1+((E7+E18)/100))*(1+E23/100)*(1+E25/100))/(1-D12/100)-1)*100,2) -> 15 | E31: %
A37: BDI EM CONFORMIDADE COM OS ACÓRDÃOS Nº 2369/2011 e ACÓRDÃO Nº 2.622/2013 - TCU - PLENÁRIO

Sheet CRONOGRAMA
B1: CRONOGRAMA FÍSICO-FINANCEIRO
B2: OBRA: | C2: =ORÇAMENTO!C5 -> RECAPEAMENTO DE VIAS URBANAS - BAIRRO GERALDO XAVIER E RESIDENCIAL ZÉ DO NATO (SÃO JOSÉ DA VARGINHA / MG) - ITEM 3 | F2: VALOR: | G2: =ORÇAMENTO!I33 -> 2716104.91
F3: PRAZO: | G3: 120 DIAS
B5: ITEM | C5: ETAPAS/DESCRIÇAO | D5: FISICO/ FINANCEIRO | E5: TOTAL ETAPAS | F5: MÊS 1 | G5: MÊS 2 | H5: MÊS 3 | I5: MÊS 4 | J5: TOTAL
A6: A | B6: =VLOOKUP(A6,ORÇAMENTO!$A$9:$I$33,2) -> 1 | C6: =VLOOKUP(A6,ORÇAMENTO!$A$9:$I$33,3) -> SERVIÇOS PRELIMINARES | D6: FISICO | E6: =ROUND(E7/$G$2,4) -> 0.0515 | F6: 0.25 | G6: 0.25 | H6: 0.25 | I6: 0.25 | J6: =SUM(F6:I6) -> 1
D7: FINANCEIRO | E7: =ORÇAMENTO!I9 -> 139908.1 | F7: =ROUND($E$7*F6,2) -> 34977.03 | G7: =ROUND($E$7*G6,2) -> 34977.03 | H7: =ROUND($E$7*H6,2) -> 34977.03 | I7: =ROUND($E$7*I6,2) -> 34977.03 | J7: =SUM(F7:I7) -> 139908.12
A8: B | B8: =VLOOKUP(A8,ORÇAMENTO!$A$9:$I$33,2) -> 2 | C8: =VLOOKUP(A8,ORÇAMENTO!$A$9:$I$33,3) -> PAVIMENTAÇÃO | D8: FISICO | E8: =ROUND(E9/$G$2,4) -> 0.0963 | F8: 0.25 | G8: 0.25 | H8: 0.25 | I8: 0.25 | J8: =SUM(F8:I8) -> 1
D9: FINANCEIRO | E9: =ORÇAMENTO!I14 -> 261660.76 | F9: =ROUND($E$9*F8,2) -> 65415.19 | G9: =ROUND($E$9*G8,2) -> 65415.19 | H9: =ROUND($E$9*H8,2) -> 65415.19 | I9: =ROUND($E$9*I8,2) -> 65415.19 | J9: =SUM(F9:I9) -> 261660.76
A10: C | B10: =VLOOKUP(A10,ORÇAMENTO!$A$9:$I$33,2) -> 3 | C10: =VLOOKUP(A10,ORÇAMENTO!$A$9:$I$33,3) -> TRANSPORTE DE MATERIAIS | D10: FISICO | E10: =ROUND(E11/$G$2,4) -> 0.001 | F10: 0.25 | G10: 0.25 | H10: 0.25 | I10: 0.25 | J10: =SUM(F10:I10) -> 1
D11: FINANCEIRO | E11: =ORÇAMENTO!I18 -> 2596 | F11: =ROUND($E$11*F10,2) -> 649 | G11: =ROUND($E$11*G10,2) -> 649 | H11: =ROUND($E$11*H10,2) -> 649 | I11: =ROUND($E$11*I10,2) -> 649 | J11: =SUM(F11:I11)-0.04 -> 2595.96
A12: D | B12: =VLOOKUP(A12,ORÇAMENTO!$A$9:$I$33,2) -> 4 | C12: =VLOOKUP(A12,ORÇAMENTO!$A$9:$I$33,3) -> TRANSPORTE DE MATERIAL ASFÁLTICO (BDI DIFERENCIADO) | D12: FISICO | E12: =ROUND(E13/$G$2,4) -> 0.0178 | F12: 0.25 | G12: 0.25 | H12: 0.25 | I12: 0.25 | J12: =SUM(F12:I12) -> 1
D13: FINANCEIRO | E13: =ORÇAMENTO!I21 -> 48296 | F13: =ROUND($E$13*F12,2) -> 12074 | G13: =ROUND($E$13*G12,2) -> 12074 | H13: =ROUND($E$13*H12,2) -> 12074 | I13: =ROUND($E$13*I12,2) -> 12074 | J13: =SUM(F13:I13)-0.02 -> 48295.98
A14: E | B14: =VLOOKUP(A14,ORÇAMENTO!$A$9:$I$33,2) -> 5 | C14: =VLOOKUP(A14,ORÇAMENTO!$A$9:$I$33,3) -> DRENAGEM E OBRAS COMPLEMENTARES | D14: FISICO | E14: =ROUND(E15/$G$2,4) -> 0.0524 | G14: 0.3 | H14: 0.4 | I14: 0.3 | J14: =SUM(F14:I14) -> 1
D15: FINANCEIRO | E15: =ORÇAMENTO!I24 -> 142413.4 | F15: =ROUND($E$15*F14,2) -> 0 | G15: =ROUND($E$15*G14,2) -> 42724.02 | H15: =ROUND($E$15*H14,2) -> 56965.36 | I15: =ROUND($E$15*I14,2) -> 42724.02 | J15: =SUM(F15:I15)-0.02 -> 142413.38
A16: F | B16: =VLOOKUP(A16,ORÇAMENTO!$A$9:$I$33,2) -> 6 | C16: =VLOOKUP(A16,ORÇAMENTO!$A$9:$I$33,3) -> FORNECIMENTOS - MATERIAL ASFÁLTICO (BDI DIFERENCIADO) | D16: FISICO | E16: =ROUND(E17/$G$2,4) -> 0.781 | F16: 0.25 | G16: 0.25 | H16: 0.25 | I16: 0.25 | J16: =SUM(F16:I16) -> 1
D17: FINANCEIRO | E17: =ORÇAMENTO!I30 -> 2121230.65 | F17: =ROUND($E$17*F16,2) -> 530307.66 | G17: =ROUND($E$17*G16,2) -> 530307.66 | H17: =ROUND($E$17*H16,2) -> 530307.66 | I17: =ROUND($E$17*I16,2) -> 530307.66 | J17: =SUM(F17:I17)-0.02 -> 2121230.62
B18: TOTAL | D18: FISICO | E18: =SUM(F18:I18) -> 1.000000004 | F18: =F19/$E$19 -> 0.2368917628 | G18: =G19/$E$19 -> 0.2526216486 | H18: =H19/$E$19 -> 0.2578649438 | I18: =I19/$E$19 -> 0.2526216486 | J18: =SUM(F18:I18) -> 1.000000004
D19: FINANCEIRO | E19: =E11+E9+E7+E13+E17+E15 -> 2716104.91 | F19: =F11+F9+F7+F13+F17+F15 -> 643422.88 | G19: =G11+G9+G7+G13+G17+G15 -> 686146.9 | H19: =H11+H9+H7+H13+H17+H15 -> 700388.24 | I19: =I11+I9+I7+I13+I17+I15 -> 686146.9 | J19: =SUM(F19:I19)-0.01 -> 2716104.91
B21: OBSERVAÇÕES:
